[Event "Titled Tuesday Blitz February 15 Early 2022"]
[White "Martirosyan, Haik M."]
[Black "Annaberdiyev, Babageldi"]
[WhiteFideId "13306553"]
[BlackFideId "14000385"]
[WhiteElo "2735"]
[BlackElo "2332"]
[Result "1-0"]
[Round "08"]
[TimeControl "180+1"]
[Date "2022.02.15"]
[WhiteClock "0:01:10"]
[BlackClock "0:01:49"]

1. c4 {[%clk 0:03:00]}  e6 {[%clk 0:03:00]} 2. Nc3 {[%clk 0:03:00]}  f5 {[%clk 0:02:59]} 3. g3 {[%clk 0:03:00]}  Nf6 {[%clk 0:02:56]} 4. Bg2 {[%clk 0:03:00]}  Bb4 {[%clk 0:02:54]} 5. Qb3 {[%clk 0:02:57]}  c5 {[%clk 0:02:50]} 6. a3 {[%clk 0:02:56]}  Ba5 {[%clk 0:02:48]} 7. Nf3 {[%clk 0:02:56]}  Nc6 {[%clk 0:02:46]} 8. O-O {[%clk 0:02:56]}  O-O {[%clk 0:02:45]} 9. e3 {[%clk 0:02:56]}  b6 {[%clk 0:02:40]} 10. d4 {[%clk 0:02:56]}  Bb7 {[%clk 0:02:37]} 11. Rd1 {[%clk 0:02:51]}  Bxc3 {[%clk 0:02:34]} 12. Qxc3 {[%clk 0:02:52]}  Ne4 {[%clk 0:02:33]} 13. Qc2 {[%clk 0:02:51]}  cxd4 {[%clk 0:02:22]} 14. exd4 {[%clk 0:02:47]}  Rc8 {[%clk 0:02:22]} 15. b4 {[%clk 0:02:43]}  Ne7 {[%clk 0:02:19]} 16. Qe2 {[%clk 0:02:38]}  Nc3 {[%clk 0:02:17]} 17. Qd3 {[%clk 0:01:34]}  Nxd1 {[%clk 0:02:15]} 18. Qxd1 {[%clk 0:01:35]}  Bxf3 {[%clk 0:02:11]} 19. Bxf3 {[%clk 0:01:31]}  Rxc4 {[%clk 0:02:12]} 20. d5 {[%clk 0:01:32]}  Qc7 {[%clk 0:01:59]} 21. d6 {[%clk 0:01:30]}  Qd8 {[%clk 0:01:59]} 22. Bg5 {[%clk 0:01:28]}  Rf7 {[%clk 0:01:57]} 23. dxe7 {[%clk 0:01:23]}  Qe8 {[%clk 0:01:57]} 24. Be2 {[%clk 0:01:15]}  Re4 {[%clk 0:01:49]} 25. Bb5 {[%clk 0:01:12]}  h6 {[%clk 0:01:49]} 26. Bxd7 {[%clk 0:01:10]} 1-0


[Site "https://www.chess.com"]

[Event "Titled Tuesday Blitz February 15 Early 2022"]
[White "Matlakov, Maxim"]
[Black "Krysa, Leandro"]
[WhiteFideId "4168003"]
[BlackFideId "116807"]
[WhiteElo "2661"]
[BlackElo "2490"]
[Result "1-0"]
[Round "08"]
[TimeControl "180+1"]
[Date "2022.02.15"]
[WhiteClock "0:00:27"]
[BlackClock "0:00:02"]

1. Nf3 {[%clk 0:03:00]}  Nf6 {[%clk 0:02:59]} 2. g3 {[%clk 0:03:01]}  d5 {[%clk 0:02:56]} 3. Bg2 {[%clk 0:03:01]}  c6 {[%clk 0:02:57]} 4. c4 {[%clk 0:03:00]}  Bf5 {[%clk 0:02:56]} 5. cxd5 {[%clk 0:02:59]}  cxd5 {[%clk 0:02:56]} 6. Qb3 {[%clk 0:02:59]}  Nc6 {[%clk 0:02:54]} 7. Qxb7 {[%clk 0:02:59]}  Bd7 {[%clk 0:02:55]} 8. Qb3 {[%clk 0:02:59]}  Rb8 {[%clk 0:02:54]} 9. Qd1 {[%clk 0:02:59]}  e5 {[%clk 0:02:55]} 10. d3 {[%clk 0:02:59]}  Bb4+ {[%clk 0:02:47]} 11. Nfd2 {[%clk 0:02:58]}  h5 {[%clk 0:02:45]} 12. Nc3 {[%clk 0:02:56]}  h4 {[%clk 0:02:42]} 13. Nxd5 {[%clk 0:02:49]}  Nxd5 {[%clk 0:02:41]} 14. Bxd5 {[%clk 0:02:50]}  Nd4 {[%clk 0:02:31]} 15. e3 {[%clk 0:02:29]}  Bb5 {[%clk 0:02:22]} 16. Be4 {[%clk 0:02:15]}  f5 {[%clk 0:02:14]} 17. Bg2 {[%clk 0:02:01]}  h3 {[%clk 0:02:00]} 18. Bxh3 {[%clk 0:01:50]}  Rxh3 {[%clk 0:01:54]} 19. exd4 {[%clk 0:01:50]}  Bxd3 {[%clk 0:01:50]} 20. a3 {[%clk 0:01:14]}  Qd5 {[%clk 0:01:44]} 21. f3 {[%clk 0:00:52]}  Qxd4 {[%clk 0:01:38]} 22. Qa4+ {[%clk 0:00:52]}  Kf8 {[%clk 0:01:02]} 23. Kd1 {[%clk 0:00:52]}  Rxh2 {[%clk 0:00:57]} 24. Re1 {[%clk 0:00:52]}  Qc5 {[%clk 0:00:23]} 25. Qb3 {[%clk 0:00:35]}  Bxd2 {[%clk 0:00:06]} 26. Qxb8+ {[%clk 0:00:34]}  Kf7 {[%clk 0:00:04]} 27. Qb3+ {[%clk 0:00:29]}  Bc4 {[%clk 0:00:03]} 28. Qb7+ {[%clk 0:00:28]}  Kg8 {[%clk 0:00:03]} 29. Bxd2 {[%clk 0:00:27]}  Rxd2+ {[%clk 0:00:02]} 30. Kxd2 {[%clk 0:00:27]}  Qd4+ {[%clk 0:00:02]} 31. Kc1 {[%clk 0:00:27]} 1-0


[Site "https://www.chess.com"]

[Event "Titled Tuesday Blitz February 15 Early 2022"]
[White "Milosevic, Milos"]
[Black "Petrova, Irina"]
[WhiteFideId "964875"]
[BlackFideId "14124122"]
[WhiteElo "2198"]
[BlackElo "1988"]
[Result "1-0"]
[Round "08"]
[TimeControl "180+1"]
[Date "2022.02.15"]
[WhiteClock "0:00:13"]
[BlackClock "0:00:02"]

1. g3 {[%clk 0:03:00]}  d5 {[%clk 0:02:58]} 2. Bg2 {[%clk 0:03:01]}  c6 {[%clk 0:02:57]} 3. d3 {[%clk 0:03:01]}  Nf6 {[%clk 0:02:53]} 4. e4 {[%clk 0:03:01]}  dxe4 {[%clk 0:02:53]} 5. dxe4 {[%clk 0:03:02]}  Qxd1+ {[%clk 0:02:53]} 6. Kxd1 {[%clk 0:03:03]}  e5 {[%clk 0:02:53]} 7. f3 {[%clk 0:03:00]}  Be6 {[%clk 0:02:46]} 8. Bh3 {[%clk 0:03:00]}  Bxh3 {[%clk 0:02:38]} 9. Nxh3 {[%clk 0:03:01]}  Bc5 {[%clk 0:02:37]} 10. c3 {[%clk 0:02:59]}  a5 {[%clk 0:02:36]} 11. a4 {[%clk 0:02:57]}  Nbd7 {[%clk 0:02:36]} 12. Nd2 {[%clk 0:02:56]}  h6 {[%clk 0:02:34]} 13. Nc4 {[%clk 0:02:55]}  Ke7 {[%clk 0:02:15]} 14. Kc2 {[%clk 0:02:54]}  Rhd8 {[%clk 0:02:13]} 15. Rd1 {[%clk 0:02:51]}  Ke6 {[%clk 0:02:11]} 16. Be3 {[%clk 0:02:45]}  Bxe3 {[%clk 0:02:11]} 17. Nxe3 {[%clk 0:02:46]}  Nc5 {[%clk 0:02:00]} 18. Nf5 {[%clk 0:02:44]}  g6 {[%clk 0:01:52]} 19. Nxh6 {[%clk 0:02:42]}  Rxd1 {[%clk 0:01:40]} 20. Rxd1 {[%clk 0:02:30]}  Rh8 {[%clk 0:01:34]} 21. Ng5+ {[%clk 0:02:28]}  Ke7 {[%clk 0:01:34]} 22. Ngxf7 {[%clk 0:02:17]}  Rh7 {[%clk 0:01:32]} 23. g4 {[%clk 0:01:58]}  Rxf7 {[%clk 0:01:26]} 24. Nxf7 {[%clk 0:01:59]}  Kxf7 {[%clk 0:01:26]} 25. Ra1 {[%clk 0:01:57]}  g5 {[%clk 0:01:12]} 26. b4 {[%clk 0:01:56]}  axb4 {[%clk 0:01:11]} 27. cxb4 {[%clk 0:01:56]}  Ne6 {[%clk 0:01:12]} 28. Kc3 {[%clk 0:01:42]}  Nd4 {[%clk 0:01:12]} 29. Rf1 {[%clk 0:01:26]}  Ne8 {[%clk 0:01:12]} 30. Kc4 {[%clk 0:01:23]}  b6 {[%clk 0:01:05]} 31. a5 {[%clk 0:01:19]}  Nd6+ {[%clk 0:01:05]} 32. Kd3 {[%clk 0:01:10]}  bxa5 {[%clk 0:00:59]} 33. bxa5 {[%clk 0:01:09]}  c5 {[%clk 0:01:00]} 34. a6 {[%clk 0:01:03]}  c4+ {[%clk 0:00:59]} 35. Ke3 {[%clk 0:01:01]}  N6b5 {[%clk 0:00:48]} 36. Rc1 {[%clk 0:00:56]}  Nc7 {[%clk 0:00:26]} 37. a7 {[%clk 0:00:50]}  Ndb5 {[%clk 0:00:18]} 38. Rxc4 {[%clk 0:00:49]}  Ke6 {[%clk 0:00:17]} 39. Rc6+ {[%clk 0:00:46]}  Kd7 {[%clk 0:00:16]} 40. Rg6 {[%clk 0:00:42]}  Nxa7 {[%clk 0:00:16]} 41. Rxg5 {[%clk 0:00:42]}  Nc6 {[%clk 0:00:16]} 42. Rg7+ {[%clk 0:00:38]}  Kd6 {[%clk 0:00:15]} 43. h4 {[%clk 0:00:38]}  Ne6 {[%clk 0:00:15]} 44. Rg8 {[%clk 0:00:34]}  Ke7 {[%clk 0:00:15]} 45. g5 {[%clk 0:00:21]}  Ncd4 {[%clk 0:00:13]} 46. g6 {[%clk 0:00:16]}  Kf6 {[%clk 0:00:11]} 47. h5 {[%clk 0:00:16]}  Nf4 {[%clk 0:00:11]} 48. Rf8+ {[%clk 0:00:13]}  Kg7 {[%clk 0:00:04]} 49. Rxf4 {[%clk 0:00:13]}  Nc2+ {[%clk 0:00:02]} 50. Kd2 {[%clk 0:00:13]}  exf4 {[%clk 0:00:02]} 51. Kxc2 {[%clk 0:00:13]} 1-0


[Site "https://www.chess.com"]

[Event "Titled Tuesday Blitz February 15 Early 2022"]
[White "Mirzanurov, Bulat"]
[Black "Desideri, Ricardo Maruchi"]
[WhiteFideId "4184521"]
[BlackFideId "2110440"]
[WhiteElo "2116"]
[BlackElo "1945"]
[Result "1-0"]
[Round "08"]
[TimeControl "180+1"]
[Date "2022.02.15"]
[WhiteClock "0:00:02"]
[BlackClock "0:00:04"]

1. e4 {[%clk 0:03:00]}  c5 {[%clk 0:02:57]} 2. Nf3 {[%clk 0:03:01]}  d6 {[%clk 0:02:57]} 3. d4 {[%clk 0:03:01]}  cxd4 {[%clk 0:02:58]} 4. Nxd4 {[%clk 0:03:02]}  Nf6 {[%clk 0:02:58]} 5. Nc3 {[%clk 0:03:03]}  a6 {[%clk 0:02:58]} 6. Bg5 {[%clk 0:03:03]}  Nbd7 {[%clk 0:02:57]} 7. Qe2 {[%clk 0:02:58]}  Qc7 {[%clk 0:02:53]} 8. O-O-O {[%clk 0:01:59]}  e6 {[%clk 0:02:48]} 9. f4 {[%clk 0:01:47]}  Be7 {[%clk 0:02:45]} 10. g4 {[%clk 0:01:35]}  b5 {[%clk 0:02:42]} 11. a3 {[%clk 0:01:35]}  Bb7 {[%clk 0:02:36]} 12. f5 {[%clk 0:01:27]}  e5 {[%clk 0:02:27]} 13. Bxf6 {[%clk 0:01:24]}  Nxf6 {[%clk 0:02:23]} 14. Nb3 {[%clk 0:01:23]}  Rc8 {[%clk 0:02:19]} 15. Bg2 {[%clk 0:01:19]}  h6 {[%clk 0:02:15]} 16. Kb1 {[%clk 0:01:18]}  Qc4 {[%clk 0:02:11]} 17. Qe3 {[%clk 0:01:00]}  Nxg4 {[%clk 0:01:51]} 18. Qg3 {[%clk 0:00:54]}  Nf6 {[%clk 0:01:42]} 19. Bf1 {[%clk 0:00:32]}  Qc7 {[%clk 0:01:24]} 20. Qxg7 {[%clk 0:00:30]}  Rg8 {[%clk 0:01:24]} 21. Qxh6 {[%clk 0:00:30]}  Nxe4 {[%clk 0:01:18]} 22. Bd3 {[%clk 0:00:15]}  Nxc3+ {[%clk 0:01:15]} 23. bxc3 {[%clk 0:00:15]}  Qxc3 {[%clk 0:01:04]} 24. Rhg1 {[%clk 0:00:14]}  Rf8 {[%clk 0:00:54]} 25. f6 {[%clk 0:00:12]}  Bd8 {[%clk 0:00:51]} 26. Bf5 {[%clk 0:00:12]}  Rc6 {[%clk 0:00:47]} 27. Be4 {[%clk 0:00:09]}  Rc7 {[%clk 0:00:46]} 28. Bxb7 {[%clk 0:00:08]}  Rxb7 {[%clk 0:00:46]} 29. Rxd6 {[%clk 0:00:08]}  Bb6 {[%clk 0:00:27]} 30. Rgd1 {[%clk 0:00:07]}  Rb8 {[%clk 0:00:20]} 31. Qg5 {[%clk 0:00:02]}  Bd4 {[%clk 0:00:18]} 32. Nxd4 {[%clk 0:00:02]}  Rc8 {[%clk 0:00:09]} 33. Qd2 {[%clk 0:00:02]}  exd4 {[%clk 0:00:07]} 34. Qe2+ {[%clk 0:00:01]}  Qe3 {[%clk 0:00:04]} 35. Qxe3+ {[%clk 0:00:02]}  dxe3 {[%clk 0:00:04]} 36. Re1 {[%clk 0:00:02]} 1-0


[Site "https://www.chess.com"]

[Event "Titled Tuesday Blitz February 15 Early 2022"]
[White "Moskvin, Anatoly"]
[Black "Atakhan, Abtin"]
[WhiteFideId "24199990"]
[BlackFideId "22502203"]
[WhiteElo "2079"]
[BlackElo "2119"]
[Result "0-1"]
[Round "08"]
[TimeControl "180+1"]
[Date "2022.02.15"]
[WhiteClock "0:00:06"]
[BlackClock "0:00:06"]

1. e4 {[%clk 0:03:00]}  c6 {[%clk 0:02:59]} 2. c4 {[%clk 0:03:00]}  d5 {[%clk 0:03:00]} 3. exd5 {[%clk 0:03:01]}  cxd5 {[%clk 0:03:00]} 4. cxd5 {[%clk 0:03:02]}  Nf6 {[%clk 0:03:00]} 5. Nc3 {[%clk 0:03:03]}  Nxd5 {[%clk 0:03:00]} 6. Nf3 {[%clk 0:03:04]}  Nc6 {[%clk 0:03:00]} 7. Bb5 {[%clk 0:03:03]}  e6 {[%clk 0:02:45]} 8. O-O {[%clk 0:03:03]}  Be7 {[%clk 0:02:43]} 9. d4 {[%clk 0:03:03]}  O-O {[%clk 0:02:40]} 10. Re1 {[%clk 0:02:54]}  Bd7 {[%clk 0:02:38]} 11. h3 {[%clk 0:02:48]}  Rc8 {[%clk 0:02:25]} 12. Bd3 {[%clk 0:02:46]}  Ncb4 {[%clk 0:02:21]} 13. Nxd5 {[%clk 0:02:34]}  Nxd5 {[%clk 0:02:18]} 14. Ne5 {[%clk 0:02:34]}  Nb4 {[%clk 0:02:12]} 15. Bb1 {[%clk 0:02:25]}  Bf6 {[%clk 0:01:59]} 16. Qb3 {[%clk 0:01:59]}  a5 {[%clk 0:01:15]} 17. a3 {[%clk 0:01:56]}  Nc6 {[%clk 0:01:15]} 18. Qxb7 {[%clk 0:01:39]}  Rc7 {[%clk 0:01:13]} 19. Qa6 {[%clk 0:00:58]}  Qc8 {[%clk 0:00:22]} 20. Qd3 {[%clk 0:00:52]}  g6 {[%clk 0:00:22]} 21. Ba2 {[%clk 0:00:33]}  Nxe5 {[%clk 0:00:19]} 22. dxe5 {[%clk 0:00:32]}  Bxe5 {[%clk 0:00:20]} 23. Bh6 {[%clk 0:00:30]}  Bg7 {[%clk 0:00:19]} 24. Bxg7 {[%clk 0:00:28]}  Kxg7 {[%clk 0:00:20]} 25. Qd4+ {[%clk 0:00:28]}  Kg8 {[%clk 0:00:21]} 26. h4 {[%clk 0:00:27]}  h5 {[%clk 0:00:21]} 27. Qf4 {[%clk 0:00:15]}  Bb5 {[%clk 0:00:18]} 28. Re5 {[%clk 0:00:07]}  Bc4 {[%clk 0:00:17]} 29. Bb1 {[%clk 0:00:03]}  Rc5 {[%clk 0:00:16]} 30. Rxc5 {[%clk 0:00:02]}  Qxc5 {[%clk 0:00:17]} 31. Bc2 {[%clk 0:00:02]}  Bd5 {[%clk 0:00:17]} 32. Bd3 {[%clk 0:00:03]}  Rc8 {[%clk 0:00:15]} 33. Re1 {[%clk 0:00:02]}  Qc7 {[%clk 0:00:15]} 34. Qxc7 {[%clk 0:00:01]}  Rxc7 {[%clk 0:00:16]} 35. b4 {[%clk 0:00:02]}  Rc3 {[%clk 0:00:15]} 36. Ba6 {[%clk 0:00:01]}  Rxa3 {[%clk 0:00:15]} 37. b5 {[%clk 0:00:02]}  Rb3 {[%clk 0:00:11]} 38. Ra1 {[%clk 0:00:02]}  Bc4 {[%clk 0:00:07]} 39. Rxa5 {[%clk 0:00:03]}  Kg7 {[%clk 0:00:06]} 40. b6 {[%clk 0:00:02]}  Bd5 {[%clk 0:00:04]} 41. b7 {[%clk 0:00:02]}  Bxb7 {[%clk 0:00:05]} 42. Bxb7 {[%clk 0:00:03]}  Rxb7 {[%clk 0:00:05]} 43. g3 {[%clk 0:00:04]}  Rb2 {[%clk 0:00:05]} 44. Kg2 {[%clk 0:00:04]}  Re2 {[%clk 0:00:05]} 45. Ra6 {[%clk 0:00:04]}  Kf6 {[%clk 0:00:05]} 46. Ra5 {[%clk 0:00:05]}  Re5 {[%clk 0:00:05]} 47. Kf3 {[%clk 0:00:06]}  Rxa5 {[%clk 0:00:06]} 0-1


[Site "https://www.chess.com"]

[Event "Titled Tuesday Blitz February 15 Early 2022"]
[White "Mosutha, Thuso"]
[Black "Voege, Tobias"]
[WhiteFideId "11302550"]
[BlackFideId "1270513"]
[WhiteElo "2028"]
[BlackElo "2335"]
[Result "0-1"]
[Round "08"]
[TimeControl "180+1"]
[Date "2022.02.15"]
[WhiteClock "0:01:57"]
[BlackClock "0:02:04"]

1. d4 {[%clk 0:03:00]}  d5 {[%clk 0:02:59]} 2. Bf4 {[%clk 0:03:00]}  Nc6 {[%clk 0:02:59]} 3. Nf3 {[%clk 0:03:00]}  Nf6 {[%clk 0:03:00]} 4. e3 {[%clk 0:03:00]}  Bg4 {[%clk 0:03:00]} 5. Be2 {[%clk 0:03:00]}  e6 {[%clk 0:03:01]} 6. Ne5 {[%clk 0:03:01]}  Bxe2 {[%clk 0:03:00]} 7. Qxe2 {[%clk 0:03:02]}  Nxe5 {[%clk 0:03:01]} 8. Bxe5 {[%clk 0:03:03]}  Nd7 {[%clk 0:03:01]} 9. Bg3 {[%clk 0:03:03]}  Bd6 {[%clk 0:03:02]} 10. c3 {[%clk 0:03:04]}  O-O {[%clk 0:03:01]} 11. Nd2 {[%clk 0:03:03]}  f5 {[%clk 0:03:02]} 12. O-O-O {[%clk 0:03:02]}  Nf6 {[%clk 0:03:03]} 13. f3 {[%clk 0:03:03]}  c5 {[%clk 0:02:57]} 14. Kb1 {[%clk 0:03:02]}  b5 {[%clk 0:02:56]} 15. Bxd6 {[%clk 0:02:59]}  Qxd6 {[%clk 0:02:57]} 16. e4 {[%clk 0:02:59]}  fxe4 {[%clk 0:02:38]} 17. fxe4 {[%clk 0:03:00]}  Qb6 {[%clk 0:02:36]} 18. dxc5 {[%clk 0:02:54]}  Qxc5 {[%clk 0:02:25]} 19. Nb3 {[%clk 0:02:51]}  Qb6 {[%clk 0:02:23]} 20. exd5 {[%clk 0:02:49]}  exd5 {[%clk 0:02:20]} 21. Nd4 {[%clk 0:02:50]}  Rae8 {[%clk 0:02:15]} 22. Qxb5 {[%clk 0:02:42]}  Qxb5 {[%clk 0:02:15]} 23. Nxb5 {[%clk 0:02:43]}  Re2 {[%clk 0:02:16]} 24. g3 {[%clk 0:02:39]}  Rb8 {[%clk 0:02:15]} 25. Nd4 {[%clk 0:02:09]}  Rbxb2+ {[%clk 0:02:10]} 26. Kc1 {[%clk 0:02:09]}  Rg2 {[%clk 0:02:10]} 27. Rhe1 {[%clk 0:02:01]}  Rxa2 {[%clk 0:02:06]} 28. Kb1 {[%clk 0:02:01]}  Rgb2+ {[%clk 0:02:05]} 29. Kc1 {[%clk 0:02:01]}  Rxh2 {[%clk 0:02:06]} 30. Nb3 {[%clk 0:01:57]}  Rhc2+ {[%clk 0:02:03]} 31. Kb1 {[%clk 0:01:57]}  Rab2+ {[%clk 0:02:04]} 0-1


[Site "https://www.chess.com"]

[Event "Titled Tuesday Blitz February 15 Early 2022"]
[White "Nogerbek, Kazybek"]
[Black "Gaehwiler, Gabriel"]
[WhiteFideId "13710427"]
[BlackFideId "1314530"]
[WhiteElo "2478"]
[BlackElo "2383"]
[Result "0-1"]
[Round "08"]
[TimeControl "180+1"]
[Date "2022.02.15"]
[WhiteClock "0:00:04"]
[BlackClock "0:00:07"]

1. d4 {[%clk 0:03:00]}  Nf6 {[%clk 0:02:59]} 2. Bg5 {[%clk 0:02:58]}  g6 {[%clk 0:02:57]} 3. Bxf6 {[%clk 0:02:58]}  exf6 {[%clk 0:02:58]} 4. e3 {[%clk 0:02:58]}  d5 {[%clk 0:02:57]} 5. g3 {[%clk 0:02:58]}  c6 {[%clk 0:02:57]} 6. Bg2 {[%clk 0:02:59]}  Bd6 {[%clk 0:02:56]} 7. Ne2 {[%clk 0:02:59]}  O-O {[%clk 0:02:56]} 8. Nd2 {[%clk 0:03:00]}  Nd7 {[%clk 0:02:53]} 9. O-O {[%clk 0:03:01]}  f5 {[%clk 0:02:52]} 10. c4 {[%clk 0:03:01]}  dxc4 {[%clk 0:02:52]} 11. Nxc4 {[%clk 0:03:02]}  Nf6 {[%clk 0:02:52]} 12. Nc3 {[%clk 0:02:59]}  Be6 {[%clk 0:02:52]} 13. Qe2 {[%clk 0:02:56]}  Qe7 {[%clk 0:02:47]} 14. Rab1 {[%clk 0:02:50]}  Rad8 {[%clk 0:02:41]} 15. Nxd6 {[%clk 0:02:46]}  Qxd6 {[%clk 0:02:36]} 16. b4 {[%clk 0:02:46]}  Rfe8 {[%clk 0:02:29]} 17. Rfc1 {[%clk 0:02:41]}  Nd5 {[%clk 0:02:20]} 18. Nxd5 {[%clk 0:02:40]}  Bxd5 {[%clk 0:02:18]} 19. b5 {[%clk 0:02:17]}  Bxg2 {[%clk 0:02:10]} 20. Kxg2 {[%clk 0:02:18]}  Qxd4 {[%clk 0:01:55]} 21. bxc6 {[%clk 0:02:16]}  bxc6 {[%clk 0:01:53]} 22. Qf3 {[%clk 0:02:16]}  Qa4 {[%clk 0:01:32]} 23. Qxc6 {[%clk 0:02:01]}  Qxa2 {[%clk 0:01:26]} 24. Ra1 {[%clk 0:02:01]}  Qd5+ {[%clk 0:01:12]} 25. Qxd5 {[%clk 0:02:01]}  Rxd5 {[%clk 0:01:13]} 26. Rxa7 {[%clk 0:02:01]}  Rd2 {[%clk 0:01:06]} 27. Kf3 {[%clk 0:01:20]}  Rd6 {[%clk 0:01:02]} 28. Rcc7 {[%clk 0:01:18]}  Rf6 {[%clk 0:01:01]} 29. h3 {[%clk 0:01:19]}  Kg7 {[%clk 0:01:01]} 30. Kg2 {[%clk 0:01:17]}  Re4 {[%clk 0:01:00]} 31. Rd7 {[%clk 0:01:14]}  h6 {[%clk 0:00:57]} 32. Rd4 {[%clk 0:01:12]}  Re8 {[%clk 0:00:54]} 33. g4 {[%clk 0:01:10]}  Rb8 {[%clk 0:00:51]} 34. Rf4 {[%clk 0:01:08]}  Rb5 {[%clk 0:00:50]} 35. Rc7 {[%clk 0:01:03]}  g5 {[%clk 0:00:44]} 36. Rf3 {[%clk 0:01:00]}  Kg6 {[%clk 0:00:41]} 37. Rc8 {[%clk 0:00:58]}  Kg7 {[%clk 0:00:41]} 38. Rc4 {[%clk 0:00:50]}  Kg6 {[%clk 0:00:40]} 39. Rd4 {[%clk 0:00:42]}  Re5 {[%clk 0:00:39]} 40. h4 {[%clk 0:00:38]}  fxg4 {[%clk 0:00:36]} 41. Rxf6+ {[%clk 0:00:38]}  Kxf6 {[%clk 0:00:36]} 42. Rxg4 {[%clk 0:00:39]}  Ra5 {[%clk 0:00:29]} 43. Rb4 {[%clk 0:00:35]}  Kg7 {[%clk 0:00:29]} 44. Kg3 {[%clk 0:00:34]}  Rc5 {[%clk 0:00:28]} 45. Kg4 {[%clk 0:00:32]}  Re5 {[%clk 0:00:25]} 46. Rb6 {[%clk 0:00:29]}  Rc5 {[%clk 0:00:20]} 47. e4 {[%clk 0:00:26]}  gxh4 {[%clk 0:00:13]} 48. f3 {[%clk 0:00:20]}  Rg5+ {[%clk 0:00:13]} 49. Kxh4 {[%clk 0:00:20]}  Rg1 {[%clk 0:00:13]} 50. Kh3 {[%clk 0:00:19]}  Rg5 {[%clk 0:00:12]} 51. Ra6 {[%clk 0:00:18]}  Rg1 {[%clk 0:00:12]} 52. f4 {[%clk 0:00:18]}  Re1 {[%clk 0:00:11]} 53. e5 {[%clk 0:00:18]}  Rg1 {[%clk 0:00:10]} 54. Rb6 {[%clk 0:00:17]}  Kh7 {[%clk 0:00:10]} 55. Rb7 {[%clk 0:00:17]}  Kg6 {[%clk 0:00:10]} 56. Rb6+ {[%clk 0:00:15]}  Kg7 {[%clk 0:00:10]} 57. Rf6 {[%clk 0:00:14]}  Rg6 {[%clk 0:00:10]} 58. Rf5 {[%clk 0:00:14]}  Ra6 {[%clk 0:00:09]} 59. Kg4 {[%clk 0:00:13]}  Kg6 {[%clk 0:00:09]} 60. Rh5 {[%clk 0:00:10]}  Ra1 {[%clk 0:00:09]} 61. Rh2 {[%clk 0:00:09]}  Rf1 {[%clk 0:00:07]} 62. Rh4 {[%clk 0:00:03]}  Kg7 {[%clk 0:00:07]} 63. Kg3 {[%clk 0:00:03]}  Kg6 {[%clk 0:00:07]} 64. Kg2 {[%clk 0:00:04]}  Ra1 {[%clk 0:00:06]} 65. Kf3 {[%clk 0:00:04]}  Kg7 {[%clk 0:00:06]} 66. Rg4+ {[%clk 0:00:04]}  Kf8 {[%clk 0:00:05]} 67. Ke4 {[%clk 0:00:02]}  Ra4+ {[%clk 0:00:06]} 68. Kf5 {[%clk 0:00:03]}  Ra6 {[%clk 0:00:06]} 69. Rg1 {[%clk 0:00:01]}  Rb6 {[%clk 0:00:07]} 70. Rb1 {[%clk 0:00:02]}  Rxb1 {[%clk 0:00:06]} 71. e6 {[%clk 0:00:02]}  Rb5+ {[%clk 0:00:06]} 72. Kf6 {[%clk 0:00:03]}  fxe6 {[%clk 0:00:07]} 73. Kxe6 {[%clk 0:00:03]}  h5 {[%clk 0:00:07]} 74. Kf6 {[%clk 0:00:03]}  h4 {[%clk 0:00:08]} 75. Kg6 {[%clk 0:00:04]}  h3 {[%clk 0:00:08]} 76. f5 {[%clk 0:00:05]}  h2 {[%clk 0:00:09]} 77. f6 {[%clk 0:00:05]}  Rb6 {[%clk 0:00:08]} 78. Kh7 {[%clk 0:00:04]}  Rxf6 {[%clk 0:00:07]} 0-1


[Site "https://www.chess.com"]

[Event "Titled Tuesday Blitz February 15 Early 2022"]
[White "Osmak, Yuliia"]
[Black "De Souza Sa, Apolo"]
[WhiteFideId "14101602"]
[BlackFideId "324225390"]
[WhiteElo "2302"]
[BlackElo "1828"]
[Result "1-0"]
[Round "08"]
[TimeControl "180+1"]
[Date "2022.02.15"]
[WhiteClock "0:00:50"]
[BlackClock "0:01:05"]

1. e4 {[%clk 0:03:00]}  c5 {[%clk 0:02:58]} 2. b3 {[%clk 0:02:59]}  Nf6 {[%clk 0:02:57]} 3. e5 {[%clk 0:02:58]}  Nd5 {[%clk 0:02:57]} 4. Bb2 {[%clk 0:02:58]}  e6 {[%clk 0:02:57]} 5. Bc4 {[%clk 0:02:56]}  Nb6 {[%clk 0:02:56]} 6. Be2 {[%clk 0:02:55]}  Nc6 {[%clk 0:02:57]} 7. f4 {[%clk 0:02:54]}  d6 {[%clk 0:02:53]} 8. Nf3 {[%clk 0:02:53]}  Bd7 {[%clk 0:02:52]} 9. O-O {[%clk 0:02:52]}  Be7 {[%clk 0:02:51]} 10. exd6 {[%clk 0:02:50]}  Bxd6 {[%clk 0:02:52]} 11. Bxg7 {[%clk 0:02:50]}  Rg8 {[%clk 0:02:53]} 12. Be5 {[%clk 0:02:45]}  Nxe5 {[%clk 0:02:44]} 13. fxe5 {[%clk 0:02:44]}  Be7 {[%clk 0:02:44]} 14. Nc3 {[%clk 0:02:41]}  Bc6 {[%clk 0:02:43]} 15. Bb5 {[%clk 0:02:36]}  Qd7 {[%clk 0:02:34]} 16. Bxc6 {[%clk 0:02:34]}  Qxc6 {[%clk 0:02:35]} 17. Qe2 {[%clk 0:02:34]}  O-O-O {[%clk 0:02:33]} 18. d3 {[%clk 0:02:27]}  Rg4 {[%clk 0:02:30]} 19. Rf2 {[%clk 0:02:18]}  Rdg8 {[%clk 0:02:29]} 20. Raf1 {[%clk 0:02:16]}  Nd5 {[%clk 0:02:12]} 21. Nxd5 {[%clk 0:02:11]}  Qxd5 {[%clk 0:02:12]} 22. Nd2 {[%clk 0:02:00]}  Bh4 {[%clk 0:01:54]} 23. g3 {[%clk 0:01:43]}  Bxg3 {[%clk 0:01:53]} 24. hxg3 {[%clk 0:01:44]}  Rxg3+ {[%clk 0:01:53]} 25. Kh2 {[%clk 0:01:44]}  R3g4 {[%clk 0:01:44]} 26. Nf3 {[%clk 0:01:38]}  Qd8 {[%clk 0:01:36]} 27. Qe3 {[%clk 0:01:29]}  R8g6 {[%clk 0:01:31]} 28. Rg1 {[%clk 0:00:59]}  Rxg1 {[%clk 0:01:28]} 29. Nxg1 {[%clk 0:00:59]}  Qf8 {[%clk 0:01:13]} 30. Nh3 {[%clk 0:00:57]}  b6 {[%clk 0:01:13]} 31. Rg2 {[%clk 0:00:56]}  Qg7 {[%clk 0:01:04]} 32. Rxg6 {[%clk 0:00:52]}  Qxg6 {[%clk 0:01:05]} 33. Qg5 {[%clk 0:00:50]} 1-0


[Site "https://www.chess.com"]